Cogmind - Beta 14 @@@ ROGUE MODE // 2025.03.28 @ 17:44:57 Player: mix Result: Destroyed by L-41 Fighter with Axe Performance ------------- Evolutions (3) 1500 Regions Visited (7) 1400 Robots Destroyed (68) 340 Value Destroyed (3484) 3484 Prototype IDs (24) 480 Alien Tech Used (0) 0 Bonus (2998) 2998 TOTAL SCORE: 10202 Bonus ------- Triggered High Security 500 High Alert Combat Kills 1543 Entered Garrisons 200 Used RIF Installer 500 Aligned with FarCom 300 Friendly Fire -45 Cogmind --------- Core Integrity 0/700 Matter 236/300 Energy 100/100 System Corruption 0% Temperature Cool (0) Movement Core (350) Ox6 Location -7/Factory Parts ------- > --- POWER (1) -------- (None) > --- PROPULSION (3) --- (None) > --- UTILITY (7) ------ Large Storage Unit > --- WEAPON (2) ------- (None) > --- INVENTORY (15) --- Light Treads Light Treads Signal Interpreter Improved Recalibrator Heavy Laser Heavy Ion Cannon Heavy Ion Cannon Advanced Plasma Cannon Remote Datajack Longsword +1 EM Surge Trap Peak State ------------ > --- POWER ------------ Improved Ion Engine > --- PROPULSION ------- Light Treads Light Treads Armored Medium Treads > --- UTILITY ---------- Large Storage Unit Core Shielding Light Armor Plating Layered Medium Armor Plating Relay Coupler [Sentry] > --- WEAPON ----------- Heavy Ion Cannon Longsword +1 > --- INVENTORY -------- Light Treads Light Treads Signal Interpreter Improved Recalibrator Heavy Laser Heavy Ion Cannon Advanced Plasma Cannon Hypervelocity Gauss Cannon Heavy Missile Launcher Precision Grenade Launcher Precision Grenade Launcher EM Surge Trap EM Surge Trap EM Surge Trap [Rating: 38] Favorites ----------- Power Improved Ion Engine Engine Improved Ion Engine Propulsion Light Treads Treads Light Treads Utility Light Armor Plating Device Improved Heat Sink Storage Large Storage Unit Processor Target Analyzer Hackware Relay Coupler [Sentry] Protection Light Armor Plating Weapon Longsword +1 Energy Gun Particle Gun Energy Cannon Heavy Ion Cannon Ballistic Gun Assault Rifle Ballistic Cannon Hypervelocity Gauss Cannon Launcher Precision Grenade Launcher Special Weapon Remote Datajack Slashing Weapon Longsword +1 Build | -11 -10 -10 -10 -9 -8 -8 -7 ------- Run | Yrd Mat Min Exi Min Mat Gar Fac Slots Evolved 6 | . . . . . 4 . 2 Power . | . . . . . . . . Propulsion 1 | . . . . . 1 . . Utility 5 | . . . . . 3 . 2 Weapon . | . . . . . . . . Parts Attached 90 | 6 9 1 1 2 6 59 6 Power 6 | 1 1 . . 1 . 3 . Engine 6 | 1 1 . . 1 . 3 . Core . | . . . . . . . . Reactor . | . . . . . . . . Propulsion 16 | 2 . . . . 1 12 1 Treads 16 | 2 . . . . 1 12 1 Leg . | . . . . . . . . Wheel . | . . . . . . . . Hover . | . . . . . . . . Flight . | . . . . . . . . Utility 23 | 1 4 . . . 3 15 . Device 5 | . 2 . . . . 3 . Storage 3 | 1 2 . . . . . . Processor 1 | . . . . . . 1 . Hackware 2 | . . . . . . 2 . Protection 12 | . . . . . 3 9 . Artifact . | . . . . . . . . Weapon 45 | 2 4 1 1 1 2 29 5 Energy Gun 7 | . 1 1 . 1 . 4 . Energy Cannon 9 | . 1 . . . . 8 . Ballistic Gun 3 | 2 1 . . . . . . Ballistic Cannon 1 | . . . . . . . 1 Launcher 16 | . 1 . . . 1 11 3 Special Weapon 2 | . . . . . . 1 1 Impact Weapon . | . . . . . . . . Slashing Weapon 7 | . . . 1 . 1 5 . Piercing Weapon . | . . . . . . . . Special Melee Weapon . | . . . . . . . . Unidentified Prototypes 1 | . . . . . 1 . . Parts Lost 24 | . 1 . . . . 11 12 Power 3 | . . . . . . 2 1 Propulsion 4 | . . . . . . 1 3 Utility 10 | . . . . . . 6 4 Weapon 7 | . 1 . . . . 2 4 Highest Loss Streak 12 | . 1 . . . . 2 12 To Critical Strikes . | . . . . . . . . Average Slot Usage (%) 96 | . 93 100 100 100 98 97 81 Engine 10 | . 14 14 14 14 9 8 6 Treads 27 | . 28 28 28 28 27 27 22 Device 8 | . 7 14 14 14 9 6 6 Storage 10 | . 14 14 14 14 9 9 7 Hackware 1 | . . . . . . 1 7 Protection 16 | . . . . . 27 25 14 Energy Gun 4 | . 5 14 7 12 9 2 . Energy Cannon 6 | . 4 14 14 14 . 5 . Ballistic Gun 2 | . 18 . . . . . . Launcher 1 | . . . . . . 2 . Slashing Weapon 5 | . . . 6 1 6 7 6 Peak Build Rating 38 | 6 9 10 17 17 24 38 34 Average Rating 22 | 3 7 9 13 12 22 29 32 On Entrance 14 | . 6 9 10 17 12 24 34 Naked Turns . | . . . . . . . . Heaviest Build 56 | 12 30 32 32 34 41 56 40 Greatest Support 67 | 40 40 40 40 40 60 67 67 Greatest Overweight (x) 9 | . . . . . . . 9 Average Overweight (x) . | . . . . . . . . Largest Inventory Capacity 15 | 8 15 15 15 15 15 15 15 Average Capacity 14 | 6 8 15 15 15 15 15 15 Most Carried 15 | 4 9 9 9 11 12 15 15 Average Carried 11 | . 3 8 8 10 10 14 14 Final Capacity 15 | 8 15 15 15 15 15 15 15 Final Carried 15 | . 8 8 9 11 11 15 11 Class Distribution -------------------- 52% | Scavenger-Mutant 47% | Mutant Dominant Class ---------------- Mutant | -10/Materials Mutant | -10/Mines Mutant | -10/Exiles Mutant | -9/Mines Mutant | -8/Materials Scavenger-Mutant | -8/Garrison Scavenger-Mutant | -7/Factory Resources | -11 -10 -10 -10 -9 -8 -8 -7 ----------- Run | Yrd Mat Min Exi Min Mat Gar Fac Matter Collected 1646 | 123 354 20 . 30 . 1104 15 Remotely . | . . . . . . . . Salvage Created 3133 | . 459 168 . 26 . 2155 325 Parts 147 | . 18 7 . 3 . 110 9 Haulers Intercepted 1 | . 1 . . . . . . Recyclers Shooed 3 | . 3 . . . . . . Parts Field Recycled . | . . . . . . . . Retrieved Matter . | . . . . . . . . Parts Self-Destructed . | . . . . . . . . Prevented . | . . . . . . . . Kills | -11 -10 -10 -10 -9 -8 -8 -7 ------- Run | Yrd Mat Min Exi Min Mat Gar Fac Combat Hostiles Destroyed 62 | . 7 4 . . . 41 10 Melee 23 | . . . . . . 22 1 Guns 7 | . 4 2 . . . 1 . Cannons 12 | . 3 2 . . . 7 . AOE 20 | . . . . . . 11 9 Classes Destroyed 12 | . 4 . . 1 . 6 1 Tunneler 1 | . . . . 1 . . . Hauler 1 | . 1 . . . . . . Recycler 1 | . 1 . . . . . . Mechanic 1 | . . . . . . . 1 Watcher 2 | . 1 . . . . 1 . Grunt 32 | . 7 4 . . . 13 8 Brawler 2 | . . . . . . 1 1 Duelist 1 | . . . . . . 1 . Sentry 17 | . . . . . . 16 1 Hunter 5 | . . . . . . 5 . Programmer 4 | . . . . . . 4 . Behemoth 1 | . . . . . . 1 . Best Kill Streak 10 | . 2 2 . 1 . 5 10 Combat Bots Only 9 | . 2 2 . . . 4 9 Max Kills in Single Turn 9 | . 1 1 . 1 . 2 9 Gunslinging . | . . . . . . . . Exploded 8 | . . . . . . 2 8 Melee 1 | . . . . . . 1 1 Uniques/NPCs Destroyed . | . . . . . . . . Combat | -11 -10 -10 -10 -9 -8 -8 -7 -------- Run | Yrd Mat Min Exi Min Mat Gar Fac Hostile Shots Fired 357 | . 30 23 . . . 142 162 Missed 97 | . 5 6 . . . 41 45 Damage Taken 4597 | . 368 235 . . . 1985 2009 Core 1057 | . 88 14 . . . 221 734 Absorbed by Shields . | . . . . . . . . Redirected to Shielding 45 | . . . . . . 45 . Core Remaining (%) 72 | 100 . . . 59 . 59 . Volleys Fired 148 | . 44 15 . 2 . 82 5 Largest 2 | . 2 2 . 2 . 2 2 Hottest 130 | . 100 125 . 125 . 130 75 Shots Fired 239 | . 85 30 . 3 . 114 7 Gun 94 | . 66 15 . 1 . 12 . Cannon 104 | . 18 15 . 2 . 67 2 Launcher 39 | . 1 . . . . 34 4 Special 2 | . . . . . . 1 1 Kinetic 46 | . 44 . . . . . 2 Thermal 147 | . 40 30 . 3 . 74 . Explosive 39 | . 1 . . . . 34 4 Electromagnetic 5 | . . . . . . 5 . Robot Hit Streak 22 | . 8 7 . 1 . 22 5 Robot Miss Streak 3 | . 3 3 . 1 . 2 1 Penetration Max . | . . . . . . . . Secondary Targets . | . . . . . . . . Shots Hit Robots 192 | . 52 20 . 1 . 105 14 Core Hits 135 | . 19 7 . 1 . 68 40 Critical Kills . | . . . . . . . . Critical Parts Destroyed 1 | . . . . . . . 1 Critical Strikes 9 | . . . . . . 7 2 Burn 1 | . . . . . . 1 . Destroy 1 | . . . . . . . 1 Sever 7 | . . . . . . 6 1 Melee Attacks 130 | . . . . . . 111 19 Impact . | . . . . . . . . Slashing 130 | . . . . . . 111 19 Piercing . | . . . . . . . . Sneak Attacks 3 | . . . . . . 3 . Combat Hostiles 2 | . . . . . . 2 . Follow-up Attacks . | . . . . . . . . Damage Inflicted 8706 | . 711 314 . 15 . 5257 2409 Guns 734 | . 539 121 . 15 . 59 . Cannons 1298 | . 172 193 . . . 894 39 Explosions 3314 | . . . . . . 1350 1964 Melee 3360 | . . . . . . 2954 406 Ramming . | . . . . . . . . Kinetic 447 | . 408 . . . . . 39 Thermal 1585 | . 303 314 . 15 . 953 . Explosive 3314 | . . . . . . 1350 1964 Electromagnetic . | . . . . . . . . Impact . | . . . . . . . . Slashing 3360 | . . . . . . 2954 406 Piercing . | . . . . . . . . Highest Corruption 2 | . . . . . . 2 . Average Corruption 1 | . . . . . . 1 . Corruption Purged . | . . . . . . . . Corruption Blocked . | . . . . . . . . Effects 14 | . . . . . . 14 . Message Errors 2 | . . . . . . 2 . Matter Fused 5 | . . . . . . 5 . Heat Flow Errors 2 | . . . . . . 2 . Energy Discharges 2 | . . . . . . 2 . Data Loss (minor) 3 | . . . . . . 3 . Overload Shots . | . . . . . . . . Overflow Damage 229 | . . . . . . 166 63 Projectiles 18 | . . . . . . 18 . Explosions 58 | . . . . . . 5 53 Melee 153 | . . . . . . 143 10 Knockbacks 2 | . . . . . . . 2 Impact . | . . . . . . . . Kinetic 1 | . . . . . . . 1 Secondary 1 | . . . . . . . 1 Self-Inflicted Damage 474 | . . . . . . 296 178 Shots 17 | . . . . . . 13 4 Rammed . | . . . . . . . . Targets Rammed . | . . . . . . . . Kicked . | . . . . . . . . Crushed . | . . . . . . . . Highest Temperature 343 | . 10 174 . 24 250 343 38 Average Temperature 62 | . 4 73 . 16 139 61 21 Received Heat Transfer 1410 | . 234 135 . . . 498 543 Effects 2 | . . . . . 1 1 . Energy Bleed 2 | . . . . . 1 1 . Siege Activations . | . . . . . . . . Robots Corrupted . | . . . . . . . . Combat Hostiles . | . . . . . . . . Parts Fried . | . . . . . . . . Impact Corruptions . | . . . . . . . . Robots Melted . | . . . . . . . . Combat Hostiles . | . . . . . . . . Parts Melted 5 | . . 2 . . . 3 . Heat Transferred 2805 | . 670 692 . 37 . 1406 . Parts Sabotaged . | . . . . . . . . Parts Stolen . | . . . . . . . . Parts Stripped . | . . . . . . . . Power Chain Reactions . | . . . . . . . . Alert | -11 -10 -10 -10 -9 -8 -8 -7 ------- Run | Yrd Mat Min Exi Min Mat Gar Fac Peak Influence 3925 | . 150 103 . 5 1 3925 2301 Initial 2060 | . . 53 . . 1 . 2060 Average 1166 | . 44 64 . 1 1 1707 2095 Maximum Alert Level 5 | . . . . . . 5 5 Low Security (%) 40 | 100 100 100 . 100 100 11 . Level 1 4 | . . . . . . 6 . Level 2 5 | . . . . . . 8 . Level 3 9 | . . . . . . 15 . Level 4 5 | . . . . . . 9 . Level 5 31 | . . . . . . 48 42 High Security 3 | . . . . . . . 57 Max Security . | . . . . . . . . Squads Dispatched 11 | . 2 . . . . . 9 Investigation . | . . . . . . . . Extermination . | . . . . . . . . Reinforcement 3 | . 2 . . . . . 1 Assault 8 | . . . . . . . 8 Garrison . | . . . . . . . . Intercept . | . . . . . . . . Searches Triggered . | . . . . . . . . Construction Impeded . | . . . . . . . . Haulers Reinforced . | . . . . . . . . Active Scanning Responses . | . . . . . . . . Cargo Convoy Interrupts . | . . . . . . . . Stealth | -11 -10 -10 -10 -9 -8 -8 -7 --------- Run | Yrd Mat Min Exi Min Mat Gar Fac Distress Signals 1 | . . . . . . 1 . Communications Jammed . | . . . . . . . . Distress Signals . | . . . . . . . . Times Spotted 102 | . 19 4 . 3 . 41 35 Peak Tracking Total 22 | . 3 2 . 2 . 4 22 Tactical Retreats 5 | . 2 . . . . 3 . Traps | -11 -10 -10 -10 -9 -8 -8 -7 ------- Run | Yrd Mat Min Exi Min Mat Gar Fac Traps Triggered 4 | . . . . . . 4 . Indirectly . | . . . . . . . . Trap Hack Attempts . | . . . . . . . . Triggered . | . . . . . . . . Disarmed . | . . . . . . . . Reprogrammed . | . . . . . . . . Reused 1 | . . . . . . . 1 Traps Extracted . | . . . . . . . . Installed 1 | . . . . . . . 1 Triggered 1 | . . . . . . . 1 Most Traps Carried 3 | . . . . . . 3 2 Machines | -11 -10 -10 -10 -9 -8 -8 -7 ---------- Run | Yrd Mat Min Exi Min Mat Gar Fac Machines Disabled 12 | . . . . . . 11 1 Max in Single Turn 3 | . . . . . . 3 1 Garrison Relay 2 | . . . . . . 2 . Phase Generator 1 | . . . . . . 1 . Machines Repaired . | . . . . . . . . Machines Dismantled . | . . . . . . . . Machines Sabotaged . | . . . . . . . . Overloaded Fab Kills . | . . . . . . . . Hacking | -11 -10 -10 -10 -9 -8 -8 -7 --------- Run | Yrd Mat Min Exi Min Mat Gar Fac Machines Accessed 6 | . 1 . 1 . 1 3 . Terminals 4 | . 1 . . . . 3 . Fabricators . | . . . . . . . . Repair Stations . | . . . . . . . . Recycling Units . | . . . . . . . . Scanalyzers . | . . . . . . . . Garrison Access 1 | . . . . . 1 . . Total Hacks 10 | . 2 . 1 . 1 6 . Successful 4 | . 1 . 1 . 1 1 . Failed 6 | . 1 . . . . 5 . Catastrophic 2 | . . . . . . 2 . Database Lockouts . | . . . . . . . . Manual 3 | . 2 . 1 . . . . Terminals 8 | . 2 . . . . 6 . Fabricators . | . . . . . . . . Repair Stations . | . . . . . . . . Recycling Units . | . . . . . . . . Scanalyzers . | . . . . . . . . Garrison Access 1 | . . . . . 1 . . Terminal Hacks 3 | . 1 . 1 . . 1 . Zone Layout 1 | . 1 . . . . . . Security Stations 1 | . . . . . . 1 . Derelict Proto ID Bank 1 | . . . 1 . . . . Fabricator Hacks . | . . . . . . . . Repair Station Hacks . | . . . . . . . . Recycling Unit Hacks . | . . . . . . . . Scanalyzer . | . . . . . . . . Garrison Access Hacks 1 | . . . . . 1 . . Unlock Access 1 | . . . . . 1 . . Unauthorized Hacks . | . . . . . . . . Terminals . | . . . . . . . . Fabricators . | . . . . . . . . Repair Stations . | . . . . . . . . Recycling Units . | . . . . . . . . Scanalyzers . | . . . . . . . . Garrison Access . | . . . . . . . . Data Cores Recovered . | . . . . . . . . Used . | . . . . . . . . Hacking Detections 3 | . 1 . . . . 2 . Full Trace Events 1 | . . . . . . 1 . Feedback Events . | . . . . . . . . Feedback Blocked . | . . . . . . . . Robot Schematics Acquired . | . . . . . . . . Robots Built . | . . . . . . . . Authchips . | . . . . . . . . Time . | . . . . . . . . Total Robot Build Rating . | . . . . . . . . Part Schematics Acquired . | . . . . . . . . Parts Built . | . . . . . . . . Authchips . | . . . . . . . . Time . | . . . . . . . . Total Part Build Rating . | . . . . . . . . Parts Repaired . | . . . . . . . . Time . | . . . . . . . . Parts Recycled . | . . . . . . . . Recycled Matter . | . . . . . . . . Retrieved Matter . | . . . . . . . . Retrieved Components . | . . . . . . . . Parts Scanalyzed . | . . . . . . . . Part Schematics Acquired . | . . . . . . . . Parts Damaged . | . . . . . . . . Bothacking | -11 -10 -10 -10 -9 -8 -8 -7 ------------ Run | Yrd Mat Min Exi Min Mat Gar Fac Used RIF Installer 1 | . . . . . . 1 . Robots Hacked . | . . . . . . . . Non-combat . | . . . . . . . . Combat . | . . . . . . . . Robot Hacks Applied . | . . . . . . . . Relay Couplers Released 12 | . . . . . . 12 . Machine Destruction 8 | . . . . . . 8 . Programmers 4 | . . . . . . 4 . Attached 2 | . . . . . . 2 . Fabnet Peak Effective % . | . . . . . . . . Robots Rewired 3 | . . . . . . 3 . Allies Hacked . | . . . . . . . . Hacks Repelled . | . . . . . . . . Allies | -11 -10 -10 -10 -9 -8 -8 -7 -------- Run | Yrd Mat Min Exi Min Mat Gar Fac Total Allies 3 | . . . . . . 3 . Largest Group 3 | . . . . . . 3 . Highest-Rated Group 30 | . . . . . . 30 . Highest-Rated Ally 10 | . . . . . . 10 . Total Orders . | . . . . . . . . Ally Attacks 22 | . . . . . . 22 . Total Damage 447 | . . . . . . 447 . Kills . | . . . . . . . . Allies Corrupted . | . . . . . . . . Allies Melted . | . . . . . . . . Intel | -11 -10 -10 -10 -9 -8 -8 -7 ------- Run | Yrd Mat Min Exi Min Mat Gar Fac Robot Analysis Total . | . . . . . . . . Derelict Logs Recovered 1 | . . 1 . . . . . Drone Launches . | . . . . . . . . Drone Recoveries . | . . . . . . . . Exploration | -11 -10 -10 -10 -9 -8 -8 -7 ------------- Run | Yrd Mat Min Exi Min Mat Gar Fac Turns Passed 9106 | 55 1177 871 328 742 114 5320 499 Spaces Moved 4441 | 37 495 511 204 307 24 2685 178 Core 17 | 15 . . . . . . 2 Treads 4424 | 22 495 511 204 307 24 2685 176 Legs . | . . . . . . . . Wheels . | . . . . . . . . Hover . | . . . . . . . . Flight . | . . . . . . . . Fastest Speed 50 | 50 160 160 160 160 160 160 160 Average Speed 160 | 115 160 160 160 160 160 160 165 Slowest Speed 500 | 160 160 160 160 160 160 163 500 Overloaded Moves . | . . . . . . . . Propulsion Burnouts . | . . . . . . . . Robots Hopped . | . . . . . . . . Cave-ins Triggered . | . . . . . . . . Exploration Rate (%) 47 | 2 78 95 60 43 3 95 3 Regions Visited 7 Branch Regions 3 Pre-discovered Areas 2 | . . 2 . . . . . Known Exits Taken 1 | . . . . . 1 . . Unknown Exits Taken 5 | 1 1 1 1 1 . . . Scrap Searched 2 | . . 1 . 1 . . . Spaces Dug 56 | . . . . . . 46 10 Terrain Destroyed 445 | . 13 . . . . 403 29 Melee 39 | . . . . . . 29 10 Projectile . | . . . . . . . . AOE 406 | . 13 . . . . 374 19 Terrain Rammed . | . . . . . . . . Walls Destroyed . | . . . . . . . . Machines Disabled . | . . . . . . . . Actions | -11 -10 -10 -10 -9 -8 -8 -7 --------- Run | Yrd Mat Min Exi Min Mat Gar Fac Total 6043 | 49 794 535 205 554 99 3450 357 Wait 1103 | . 227 7 . 240 63 420 146 Move 4436 | 37 494 510 203 306 24 2684 178 Hop . | . . . . . . . . Pick Up 60 | 6 15 1 1 3 5 29 . Fast Attach 7 | . . . . . . 7 . Attach 23 | 6 2 . . . 5 7 3 Detach 1 | . . . . . . 1 . Swap 60 | . 7 1 1 2 1 45 3 Drop 38 | . 5 1 . 1 1 28 2 Fire 148 | . 44 15 . 2 . 82 5 Melee 130 | . . . . . . 111 19 Ram . | . . . . . . . . Kick . | . . . . . . . . Crush . | . . . . . . . . Escape Stasis . | . . . . . . . . Rewire 36 | . . . . . . 36 . Trap 1 | . . . . . . . 1 Miscellaneous . | . . . . . . . . Route ------- -11/Scrapyard -10/Materials (discovered 4 exits: [*Mat x3] / [*Min]) -10/Mines (discovered 3 exits: [*Mat x2] / *Exi) -10/Exiles -9/Mines -8/Materials -8/Garrison (discovered 3 exits: [*Fac x3]) -7/Factory History --------- Turn | Location | Event 28 | -11/Scrapyard | Discovered new exit (range 16) 56 | -11/Scrapyard | Entered Materials 304 | -10/Materials | Build established: Mutant 506 | -10/Materials | Discovered new exit (range 16) 916 | -10/Materials | Discovered new exit (range 14) 996 | -10/Materials | Discovered new exit (range 16) 1118 | -10/Materials | Discovered new exit (range 8) 1233 | -10/Materials | Entered Mines 1249 | -10/Mines | Learned location of Storage (-7) 1764 | -10/Mines | Discovered new exit (range 2) 2052 | -10/Mines | Discovered new exit (range 4) 2098 | -10/Mines | Deemed a non-threat by the Exiles lab entrance 2098 | -10/Mines | Discovered new exit (range 5) 2104 | -10/Mines | Entered Exiles 2143 | -10/Exiles | Met 8R-AWN 2172 | -10/Exiles | Met EX-HEX 2215 | -10/Exiles | Met EX-BIN 2232 | -10/Exiles | Aligned with FarCom system 2234 | -10/Exiles | Given EX-Vault access code 2271 | -10/Exiles | Opened EX-Vault 2282 | -10/Exiles | Found Longsword +1 2317 | -10/Exiles | Warned to stay clear of 0b10 Research branches 2360 | -10/Exiles | Met EX-DEC 2419 | -10/Exiles | Discovered new exit (range 10) 2432 | -10/Exiles | Left Exiles lab with Longsword +1 2432 | -10/Exiles | Entered Mines 2487 | -9/Mines | Assembled infested the area 2492 | -9/Mines | Assisted by a Guerilla fighting off Assembled 2579 | -9/Mines | Found DCF Scrap (12 items) 2600 | -9/Mines | YI-UF0 nonchalantly dropped a Grenade Launcher on the ground 3162 | -9/Mines | Discovered new exit (range 7) 3174 | -9/Mines | Entered Materials 3174 | -8/Materials | Evolved 4 slots: Propulsion x1, Utility x3 3288 | -8/Materials | Identified exit to Garrison 3288 | -8/Materials | Entered Garrison 3442 | -8/Garrison | Installed Relay Interface Framework 3822 | -8/Garrison | Triggered checkpoint 3934 | -8/Garrison | Triggered checkpoint 4072 | -8/Garrison | Triggered checkpoint 4109 | -8/Garrison | Learned Factory security intel 4192 | -8/Garrison | Discovered new exit (range 15) 4215 | -8/Garrison | Build established: Scavenger-Mutant 4911 | -8/Garrison | Triggered checkpoint 5054 | -8/Garrison | Triggered checkpoint 5172 | -8/Garrison | Spotted B-75 Beast 5548 | -8/Garrison | Triggered checkpoint 5625 | -8/Garrison | Discovered new exit (range 9) 5728 | -8/Garrison | Triggered checkpoint 6032 | -8/Garrison | Triggered checkpoint 6068 | -8/Garrison | Triggered checkpoint 6388 | -8/Garrison | Garrison Relay disabled 6401 | -8/Garrison | Destroyed B-75 Beast 6580 | -8/Garrison | Discovered new exit (range 10) 7332 | -8/Garrison | Phase Generator disabled 7453 | -8/Garrison | Garrison Relay disabled 8006 | -8/Garrison | Build established: Mutant 8372 | -8/Garrison | Build established: Scavenger-Mutant 8608 | -8/Garrison | Entered Factory 8608 | -7/Factory | Evolved 2 slots: Utility x2 8819 | -7/Factory | High security lockdown imminent 8899 | -7/Factory | High security lockdown engaged 9096 | -7/Factory | Core integrity fell below 50% 9101 | -7/Factory | Core integrity fell below 20% 9107 | -7/Factory | Destroyed by L-41 Fighter with Axe Last Messages --------------- The floor emits a surge of raw power. C-30 ARC bursts open, deploying its payload. H-55 Commando unfolds itself. M-28 Smith unfolds itself. Slug penetrates Wall. P-60 Hacker resets L-41 Fighter, system corruption cleaned. HV Slug penetrates L-41 Fighter. L-41 Fighter suffers critical hit (Destroy). Destroyed Imp. Deuterium Engine. L-41 Fighter knocked back. Relay Coupler [NC] destroyed. The unstable cave ceiling collapses. L-41 Fighter crushed by falling debris. L-41 Fighter system corrupted by crushing effect. Slug penetrates Wall. Hyp. Gauss Cannon destroyed. P-60 Hacker resets G-47 Trooper, system corruption cleaned. Map ----- +----------------------------------------------------+ | | | | | | | ????????????????????????????#####????????????????? | | ???????????????????????????? ???????????????? | | ???????????????????????????? "???????????????? | | ???????????????????????????"" "???????????##### | | ??????????????????????????""" ""?######???# | | ???????????????????????# """ Y" # ##??# """ | | ???????????????????????# "" # ###?# "T | | ???????????????????????# """ "" # # ### """ | | ???????????????????????# """ "" # ## ## | | ???????????????????????# """ # ### # | | ???????????????????????# # #?### ] | | ???????????????????????# ! # #???# | | ???????????##########??# # #???# | | ???????????# ! ###### ## ## ######### | | ???????????# # ! | | ???????????# |# =% | | ???????????# # | | ???????????# """""" + %%! % | | ???????????# """""" # ghh | | ?????????????"""""" # p* ##+############+ | | ??????????????""""" # lg [ # ## | | ?????????????? #### l# g g + """" ## "" | | ??????????????#######??##@l% i # """" ## | | ????????????????????????##llg" " # """" ## "" | | ?????????????????????????## """" # """" ## | | ??????????????????????????# """" # """" ??## "" | | ??????????????????????????# # """" ???# | | ??????????????????????????# ! ! # """"????# "" | | ??????????????????????????# # ?????# | | ??????????????????????????#####;#######??????# "" | | ??????????????????????????????###????????????# | | ?????????????????????????????????????????????# | | ?????????????????????????????????????????????##### | | ?????????????????????????????????????????????????? | | ?????????????????????????????????????????????????? | | ?????????????????????????????????????????????????? | | ?????????????????????????????????????????????????? | | ?????????????????????????????????????????????????? | | ?????????????????????????????????????????????????? | | ?????????????????????????????????????????????????? | | ?????????????????????????????????????????????????? | | ?????????????????????????????????????????????????? | | ?????????????????????????????????????????????????? | | ?????????????????????????????????????????????????? | | ?????????????????????????????????????????????????? | | ?????????????????????????????????????????????????? | | ?????????????????????????????????????????????????? | +----------------------------------------------------+ Best States ------------- Heat Dissipation 50 Energy Generation 12 Energy Capacity 265 Matter Stores 300 Matter Capacity 300 Sight Range 16 Terrain Scan Density 10 Armor Coverage 375 Core Shielding 20 Evasion (%) 50 Recoil Reduction 3 Relay Coupler Types 1 Relay Coupler Value 21 Item Schematics ----------------- None Robot Schematics ------------------ None Fabricated ------------ Nothing Alien Tech Used ----------------- None Achievements -------------- None Challenges ------------ None Game ------ Seed DiametricAmuletScanner Manual? 0 Play Time 00:48:07 Cumulative 69.4 hours Start 2025.03.28 @ 16:57:40 End 2025.03.28 @ 17:44:57 Sessions 1 Manual Loads 0 Difficulty Rogue Special Mode None Game No. 103 Rogue 89 Adventurer 14 Explorer 0 Win Type - Total 0 Types 0/0/0/0/0/0/0/0/0 Lore% 26 Gallery% 44 Achievement% 41 Wizard Run 0 Options --------- Layout 1 ASCII 0 Keyboard 0 Movement Mouse Keybinds 0 Fullscreen 1 Font 24/Smallcaps Map View 50x35 Zoom Use 0% Tactical HUD 0 Map Filters NONE Filters NONE Steam 1 RUN: 196ae74f-6074-4ffb-8f71-fc4e1e79f68d